bitfinex/quotes_ETHUSD_20240729
["timestamp","ask_amount","ask_price","bid_price","bid_amount"]
[1722262921775,2.99295,3341.2,3341.0,0.01]
[1722262921979,3.04743856,3341.1,3341.0,0.01]
[1722262922177,0.05441856,3341.1,3341.0,0.01]
[1722262922390,2.2923,3341.4,3341.0,0.01]
[1722262922721,0.05453214,3341.3,3341.0,0.01]
[1722262923066,2.99302,3341.1,3341.0,0.01]
[1722262923267,3.52700521,3341.1,3341.0,0.01]
[1722262923593,0.05434969,3341.1,3341.0,0.01]
[1722262923969,3.0,3341.7,3341.0,0.01]
[1722262924166,3.04716848,3341.6,3341.0,0.01]
[1722262925254,0.05457848,3341.6,3341.0,0.01]
[1722262925455,0.05457848,3341.6,3341.1,2.99294]
[1722262925702,5.33758,3341.9,3341.2,2.99293]
[1722262925907,0.05446048,3341.5,3341.3,3.05267566]
[1722262926112,2.3452,3341.9,3341.3,3.05267566]
[1722262926294,0.05249486,3341.4,3341.3,3.98180993]
[1722262926492,0.012,3342.0,3341.5,2.99261]
[1722262926692,0.012,3342.0,3341.3,3.98180993]
[1722262926998,0.0528003,3341.9,3341.5,2.99265]
[1722262927170,0.0528003,3341.9,3341.6,0.69744429]
[1722262927496,0.0528003,3341.9,3341.7,2.99248]
[1722262927900,0.0528003,3341.9,3341.7,2.99246]
[1722262928560,0.0528003,3341.9,3341.8,3.05223538]
[1722262928756,0.0217,3342.1,3341.8,3.05223538]
[1722262928970,0.05086445,3342.0,3341.9,0.67422397]
[1722262929400,0.05086445,3342.0,3341.9,3.05214003]
[1722262929699,0.0217,3342.1,3342.0,2.99222]
[1722262930078,0.0217,3342.1,3342.0,3.0520568]
[1722262930277,0.0217,3342.1,3342.0,2.99222]
[1722262930530,0.0217,3342.1,3341.3,2.636]
[1722262930670,0.0217,3342.1,3341.0,0.01]
[1722262930671,2.9924,3341.8,3341.1,2.99301]
[1722262930875,2.9924,3341.8,3341.0,0.01]
[1722262930876,0.049083,3342.0,3341.3,2.99283]
[1722262931099,0.04911645,3341.7,3341.2,0.599613]
[1722262931301,0.0217,3342.1,3341.1,2.99295]
[1722262931302,3.01386,3342.1,3341.3,0.3602563]
[1722262931486,0.04906584,3341.6,3341.4,2.99268]
[1722262931708,0.01,3342.0,3341.5,2.99265]
[1722262932030,0.01,3342.0,3341.0,0.01]
[1722262932031,2.99243,3341.8,3341.0,0.01]
[1722262932210,0.01,3342.0,3341.0,0.01]
[1722262932211,2.99254,3341.7,3341.0,0.01]
[1722262932417,0.04890015,3341.6,3341.0,3.00309]
[1722262932617,0.04890015,3341.6,3341.1,0.599638]
[1722262933286,2.99241,3341.8,3341.1,0.599638]
[1722262933484,0.04882332,3341.5,3341.1,0.599638]
[1722262933687,2.99235,3341.9,3341.2,0.3602768]
[1722262933884,0.04876669,3341.4,3341.2,0.3602768]
[1722262934092,0.01,3342.0,3341.2,0.3602768]
[1722262934093,3.00227,3342.0,3341.2,3.3531868]
[1722262934320,3.00227,3342.0,3341.2,8.9821168]
[1722262934321,0.04708519,3341.3,3341.2,8.9821168]
[1722262934481,0.01,3342.0,3341.3,2.99276]
[1722262934676,0.01,3342.0,3341.4,0.95815848]
[1722262934883,0.04736215,3341.9,3341.4,3.95090848]
[1722262935206,0.0217,3342.1,3341.4,3.95090848]
[1722262935386,0.04741586,3342.0,3341.5,0.99400953]
[1722262935575,3.03963586,3342.0,3341.5,0.99400953]
[1722262935776,2.99235,3341.9,3341.1,0.599638]
[1722262936001,2.2936,3341.7,3341.0,0.01]
[1722262936219,1.08361039,3341.6,3341.0,0.01]
[1722262936426,0.04727237,3341.6,3341.0,3.00305]
[1722262936923,0.04727237,3341.6,3341.1,3.05282846]
[1722262937321,0.04727237,3341.6,3341.3,2.99284]
[1722262937512,0.04727237,3341.6,3341.4,0.30526929]
[1722262937715,0.0217,3342.1,3341.4,0.30526929]
[1722262937910,0.04396101,3341.5,3341.0,3.00306]
[1722262938221,4.02860665,3342.0,3341.0,0.01]
[1722262938222,0.04229703,3341.4,3341.0,0.01]
[1722262938426,2.9929,3341.3,3341.0,0.01]
[1722262938616,0.04230385,3341.3,3341.0,0.01]
[1722262939350,2.99302,3341.1,3341.0,0.01]
[1722262939523,7.02253426,3341.1,3341.0,0.01]
[1722262939723,4.07176798,3341.1,3341.0,0.01]
[1722262940923,7.06489748,3341.1,3341.0,0.01]
[1722262941143,16.99637454,3341.1,3341.0,0.01]
[1722262941341,2.99417,3339.9,3339.4,7.0]
[1722262941538,2.4146,3340.1,3339.4,7.0]
[1722262941756,0.924931,3340.6,3339.7,5.98856]
[1722262941757,0.04111233,3339.8,3339.7,5.98856]
[1722262941940,7.31,3340.8,3340.1,2.99391]
[1722262942150,5.4873,3341.0,3340.1,2.99391]
[1722262942151,5.4873,3341.0,3340.2,0.05987173]
[1722262942351,0.04148588,3340.7,3340.2,0.05987173]
[1722262942559,2.4873,3341.0,3340.2,3.05369173]
[1722262942761,0.04120555,3340.6,3340.2,3.05369173]
[1722262942934,0.04120555,3340.6,3340.2,3.04369173]
[1722262943134,5.50047007,3341.0,3340.2,0.63370827]
[1722262943335,0.04111034,3340.5,3340.3,0.05986993]
[1722262943539,2.4873,3341.0,3340.4,2.99359]
[1722262943738,2.4873,3341.0,3340.5,2.9935]
[1722262943949,2.4873,3341.0,3340.4,0.05986559]
[1722262944278,3.01299007,3341.2,3340.4,3.05350559]
[1722262944448,0.012,3341.0,3340.5,2.9935]
[1722262944648,0.012,3341.0,3340.4,0.66459015]
[1722262945447,0.012,3341.0,3340.4,0.60472456]
[1722262945448,0.03200007,3341.0,3340.4,0.60472456]
[1722262945644,0.03200007,3341.0,3340.2,3.05368839]
[1722262945852,3.02516007,3341.0,3340.3,0.05986834]
[1722262946052,0.012,3341.0,3340.3,0.05986834]
[1722262946458,0.012,3341.0,3340.4,2.99356]
[1722262946790,0.012,3341.0,3340.5,0.36521113]
[1722262947644,0.012,3341.0,3339.6,6.517]
[1722262947645,2.9933,3340.8,3340.0,2.99397]
[1722262947845,2.99347,3340.6,3339.9,2.99408]
[1722262948047,0.02000007,3340.5,3339.6,2.99433]
[1722262948388,0.02000007,3340.5,3339.5,2.99445]
[1722262948389,2.99366,3340.4,3339.5,2.99445]
[1722262948681,0.92704851,3340.4,3339.4,8.429]
[1722262948887,2.99415,3339.9,3339.4,8.429]
[1722262949188,0.92704851,3340.2,3339.4,7.0]
[1722262949189,3.92108851,3340.0,3339.4,7.0]
[1722262949687,2.99387,3340.2,3339.4,7.0]
[1722262949985,6.92071851,3340.4,3339.5,0.05988771]
[1722262950282,3.92704851,3340.4,3339.5,3.05432126]
[1722262950486,3.92704851,3340.5,3339.6,1.00543213]
[1722262950693,2.99381,3340.3,3339.6,1.00543213]
[1722262950904,0.92704851,3340.5,3339.6,3.99974213]
[1722262951053,2.99365,3340.4,3339.6,3.99971213]
[1722262951251,2.99365,3340.4,3339.7,1.10595934]
[1722262951456,2.99391,3340.2,3339.4,9.99454]
[1722262951699,2.99392,3340.1,3339.4,9.99454]
[1722262951990,5.26125,3340.3,3339.4,9.99453]
[1722262952349,5.26125,3340.3,3339.4,7.0]
[1722262952547,5.26125,3340.3,3339.5,1.29893]
[1722262952951,2.2675,3340.3,3339.6,0.05988427]
[1722262953152,5.26125,3340.3,3339.6,3.05419427]
[1722262953372,2.99366,3340.4,3339.7,2.99427]
[1722262953575,2.99366,3340.4,3339.6,3.05417427]
[1722262953749,2.99374,3340.3,3339.7,1.43476143]
[1722262953954,2.99361,3340.5,3339.7,1.43476143]
[1722262954149,2.99361,3340.5,3339.4,7.0]
[1722262954150,2.2675,3340.7,3339.4,7.0]
[1722262954453,2.99397,3340.1,3339.4,7.0]
[1722262954655,2.99401,3340.0,3339.0,3.00686]
[1722262954864,2.99401,3340.0,3339.3,2.99461]
[1722262954865,3.03175556,3340.0,3339.3,2.99461]
[1722262955066,0.03774556,3340.0,3339.4,3.893473]
[1722262955269,2.9938,3340.3,3339.5,2.99445]
[1722262955590,3.50249009,3340.7,3339.7,2.99428]
[1722262955591,0.03790041,3339.9,3339.7,2.99428]
[1722262955798,2.99391,3340.2,3339.4,3.893473]
[1722262956092,2.99396,3340.1,3339.6,0.39532644]
[1722262956296,0.03780103,3340.1,3339.6,2.99435]
[1722262956456,0.92624257,3340.6,3339.3,2.99462]
[1722262956661,5.35352,3339.9,3339.0,0.012]
[1722262956870,2.99431,3339.7,3339.0,0.012]
[1722262957195,2.99437,3339.6,3339.0,0.792701]
[1722262957395,2.99446,3339.5,3339.0,0.792701]
[1722262957572,0.03767467,3339.6,3339.0,0.792701]
[1722262957768,3.03211555,3339.4,3339.0,0.792701]
[1722262957994,3.03211555,3339.4,3338.8,4.92]
[1722262957995,2.99455,3339.4,3338.8,4.92]
[1722262958196,0.03743099,3339.3,3338.8,4.92]
[1722262958495,3.03211099,3339.3,3338.8,4.92]
[1722262960174,3.03211099,3339.3,3338.8,1.93]
[1722262960175,0.03743099,3339.3,3338.8,1.93]
[1722262960456,2.99442,3339.6,3338.9,0.492525]
[1722262960756,2.99423,3339.8,3339.0,2.99489]
[1722262960757,0.03720983,3339.2,3339.0,2.99489]
[1722262960956,5.9885,3339.8,3339.0,2.99489]
[1722262961197,2.99423,3339.8,3339.1,3.8360425]
[1722262961406,2.3594,3339.9,3339.1,0.90113669]
[1722262961407,0.03753086,3339.7,3339.1,0.90113669]
[1722262961700,2.3594,3339.9,3339.3,2.99463]
[1722262961882,0.03734599,3339.6,3339.3,2.99463]
[1722262962094,0.03734599,3339.6,3339.1,3.05463419]
[1722262962399,2.3594,3339.9,3339.1,2.9948]
[1722262962616,0.0374587,3339.5,3339.2,2.99472]
[1722262962907,0.03740491,3339.4,3338.9,3.487475]
[1722262963217,0.03740491,3339.4,3339.0,0.5417475]
[1722262963356,2.9942,3339.8,3339.0,3.5365675]
[1722262963562,0.03736038,3339.3,3339.0,0.5417475]
[1722262963770,2.99438,3339.6,3338.9,2.99498]
[1722262963967,0.03728343,3339.2,3338.9,2.99498]
[1722262964215,2.99438,3339.6,3338.9,0.492498]
[1722262964367,2.99438,3339.6,3338.8,1.93]
[1722262964368,0.03722963,3339.1,3338.8,4.92507]
[1722262964707,2.99438,3339.6,3338.8,1.93]
[1722262964708,0.03730604,3339.0,3338.8,1.93]
[1722262964910,2.3594,3339.9,3338.8,1.93]
[1722262964911,2.99446,3339.5,3338.8,1.93]
[1722262965110,0.03725069,3338.9,3338.8,1.93]
[1722262965295,2.99455,3339.4,3338.8,1.93]
[1722262965508,0.03725069,3338.9,3338.8,1.93]
[1722262965810,2.99423,3339.8,3338.9,2.99497]
[1722262966024,2.99428,3339.7,3338.9,2.99496]
[1722262966319,2.99423,3339.8,3338.9,2.99496]
[1722262966472,2.99423,3339.8,3338.9,2.99491]
[1722262966674,2.3594,3339.9,3338.9,3.05483499]
[1722262966969,2.3594,3339.9,3339.2,2.99472]
[1722262967214,5.35351,3339.9,3339.2,2.99472]
[1722262967708,2.99425,3339.8,3339.0,3.5725477]
[1722262968014,2.3594,3339.9,3339.0,3.5725477]
[1722262968310,2.99429,3339.7,3339.1,0.92896297]
[1722262968521,5.3535,3339.9,3339.1,3.92377297]
[1722262968666,5.3535,3339.9,3339.1,0.92896297]
[1722262968872,5.3535,3339.9,3339.0,2.99489]
[1722262969110,2.99428,3339.7,3338.9,2.99498]
[1722262969673,0.03776291,3339.6,3338.9,2.99498]
[1722262969873,0.03776291,3339.6,3339.1,2.99476]
[1722262970129,5.35355,3339.9,3339.2,0.598969]
[1722262970430,5.35355,3339.9,3338.8,1.93]
[1722262970431,0.03764019,3339.5,3338.8,1.93]
[1722262970566,2.99442,3339.6,3338.8,4.92507]
[1722262970770,0.03758641,3339.4,3338.8,4.92507]
[1722262971006,0.03764019,3339.5,3338.8,4.92507]
[1722262971171,0.03753262,3339.3,3338.9,0.792025]
[1722262971374,2.3594,3339.9,3338.9,0.792025]
[1722262971375,0.03758641,3339.4,3338.9,0.792025]
[1722262971685,2.99473,3339.2,3338.8,1.93]
[1722262971885,2.99474,3339.2,3338.8,1.93]
[1722262972071,0.03727063,3339.1,3338.8,1.93]
[1722262972496,2.99496,3339.0,3338.2,2.99562]
[1722262972699,2.99524,3338.7,3338.0,0.01]
[1722262972905,2.58669806,3339.1,3338.0,0.01]
[1722262972906,0.03719935,3338.9,3338.1,2.99563]
[1722262973090,0.03719935,3338.9,3338.0,0.01]
[1722262973091,0.03695979,3338.6,3338.5,2.9953]
[1722262973387,2.2835,3339.1,3338.5,5.99058]
[1722262973570,0.03693354,3338.6,3338.3,2.99544]
[1722262973775,2.2835,3339.1,3338.5,2.99535]
[1722262973973,2.2835,3339.1,3338.6,2.99524]
[1722262974199,0.03714877,3339.0,3338.7,2.99511]
[1722262974402,0.03714877,3339.0,3338.6,3.594309]
[1722262976514,0.03714877,3339.0,3338.7,2.99514]
[1722262977314,0.03714877,3339.0,3338.9,2.99499]
[1722262977473,9.7104,3339.6,3338.9,3.65989109]
[1722262977675,0.03704992,3339.0,3338.9,2.99499]
[1722262977887,12.70482,3339.6,3338.9,2.99499]
[1722262978121,0.03707002,3339.0,3338.9,2.99499]
[1722262978275,12.70482,3339.6,3338.9,2.99499]
[1722262978646,12.70482,3339.6,3338.7,3.05501653]
[1722262978647,0.03707002,3339.0,3338.7,3.05501653]
[1722262978786,1.03709456,3339.5,3339.0,2.9949]
[1722262978991,9.7104,3339.6,3339.1,2.99474]
[1722262979313,2.9941,3339.9,3339.2,0.30546365]
[1722262979492,1.03700443,3339.8,3339.1,2.99474]
[1722262979691,2.9941,3339.9,3339.2,2.99472]
[1722262979692,1.03700443,3339.7,3339.2,2.99472]
[1722262979917,1.03700443,3339.8,3339.3,2.99461]
[1722262980222,2.2962,3340.0,3339.3,0.60492215]
[1722262980223,3.0,3339.9,3339.3,0.60492215]
[1722262980430,3.0,3339.9,3339.2,2.9947]
[1722262980591,1.03697378,3339.8,3339.3,2.99456]
[1722262980917,3.0,3339.9,3339.3,5.98915]
[1722262981124,8.29028,3340.0,3339.3,2.99457]
[1722262981291,1.0369523,3339.9,3338.9,2.64]
[1722262981496,5.2962,3340.0,3339.0,0.38682955]
[1722262981497,0.01,3340.0,3339.0,0.38682955]
[1722262981693,0.01,3340.0,3339.8,2.99416]
[1722262982226,0.01,3340.0,3339.9,2.9941]
[1722262983097,0.01,3340.0,3339.9,5.9882]
[1722262983307,0.01,3340.0,3339.9,2.9941]
[1722262983509,0.01,3340.0,3339.1,2.99473]
[1722262983686,2.99433,3339.7,3338.7,5.99513]
[1722262983896,5.39863,3339.9,3339.0,2.9949]
[1722262984104,0.03357037,3339.6,3339.0,2.9949]
[1722262984415,5.39863,3339.9,3339.0,2.9949]
[1722262984416,5.39863,3339.9,3339.0,2.99482]
[1722262984588,0.03351659,3339.5,3339.1,0.40131323]
[1722262984785,2.4045,3339.9,3339.4,2.99453]
[1722262985010,2.4045,3339.9,3339.2,2.99466]
[1722262985199,2.4045,3339.9,3339.2,6.04920696]
[1722262985393,5.39866,3339.9,3339.1,0.40131323]
[1722262985625,1.03699778,3339.8,3339.1,0.46120019]
[1722262985825,2.4045,3339.9,3339.3,2.99463]
[1722262986653,2.4045,3339.9,3339.2,0.34560302]
[1722262986654,2.4045,3339.9,3339.2,0.40548999]
[1722262986802,2.4045,3339.9,3339.2,0.05988697]
[1722262987003,5.39865,3339.9,3339.1,0.40131323]
[1722262987207,8.39283,3339.9,3339.1,0.46120024]
[1722262987508,2.4045,3339.9,3339.2,2.99465]
[1722262988006,2.4045,3339.9,3339.1,3.39611323]
[1722262988212,1.03696882,3339.8,3339.2,2.99472]
[1722262988412,2.4045,3339.9,3339.2,2.99472]
[1722262988610,8.39284,3339.9,3339.1,3.45596084]
[1722262988852,2.99431,3339.7,3338.9,2.99492]
[1722262989055,2.99443,3339.6,3338.9,2.99498]
[1722262989254,2.99447,3339.5,3338.8,5.63506]
[1722262989453,2.99455,3339.4,3338.6,2.99522]
[1722262989760,2.99468,3339.3,3338.5,2.99]
[1722262989942,2.99468,3339.3,3338.6,1.2019203]
[1722262990460,2.99468,3339.3,3338.6,4.1971603]
[1722262990614,2.99468,3339.3,3338.6,2.99524]
[1722262990815,2.99447,3339.5,3338.7,2.99517]
[1722262991116,2.99455,3339.4,3338.7,2.99517]
[1722262991541,0.92627704,3339.5,3338.8,2.99508]
[1722262991742,3.92069704,3339.6,3338.9,2.99499]
[1722262991935,3.92069704,3339.6,3338.7,2.99517]
[1722262991936,1.03706572,3339.5,3338.7,2.99517]
[1722262992123,0.61927988,3339.5,3338.7,2.99517]
[1722262992467,1.03711888,3339.4,3338.7,2.99517]
[1722262992666,0.92627704,3339.5,3338.7,2.99509]
[1722262992833,0.92627704,3339.6,3338.9,2.99492]
[1722262993037,0.92627704,3339.6,3338.7,5.63514]
[1722262993038,3.92070704,3339.6,3338.7,2.64]
[1722262993237,2.9946,3339.4,3338.7,5.63514]
[1722262993452,1.02275939,3339.5,3338.9,2.99495]
[1722262993624,0.92627704,3339.6,3339.0,0.05989776]
[1722262993853,0.92627704,3339.6,3338.9,2.99495]
[1722262994053,3.92069704,3339.6,3338.8,1.162043]
[1722262994257,0.92627704,3339.4,3338.7,5.63511]
[1722262994489,0.92627704,3339.4,3338.8,2.99507]
[1722262994650,0.92627704,3339.3,3338.8,2.99507]
[1722262994853,0.92627704,3339.4,3338.8,2.99507]
[1722262995179,3.92092704,3339.3,3338.7,2.64]
[1722262995359,1.54551851,3339.6,3338.5,5.98531]
[1722262995360,3.92100704,3339.2,3338.5,5.98531]
[1722262995553,2.99473,3339.2,3338.6,0.40974829]
[1722262995784,0.92627704,3339.4,3338.6,0.40974829]
[1722262995983,0.92627704,3339.4,3338.8,2.99507]
[1722262996251,0.92627704,3339.4,3338.9,2.99492]
[1722262996451,0.92627704,3339.5,3338.8,2.99501]
[1722262996769,0.92627704,3339.5,3338.8,1.20299783]
[1722262996965,0.92627704,3339.6,3339.1,2.99474]
[1722262997169,0.92627704,3339.6,3338.8,1.26289396]
[1722262997170,0.92627704,3339.6,3338.9,2.99495]
[1722262997467,0.92627704,3339.6,3339.1,2.9948]
[1722262997778,0.92627704,3339.6,3339.1,3.71407478]
[1722262998363,0.92627704,3339.6,3339.1,0.71927478]
[1722262998564,0.92627704,3339.5,3339.0,0.05989146]
[1722262998769,0.92627704,3339.6,3339.0,3.05471146]
[1722262998965,0.92627704,3339.6,3339.1,2.9948]
[1722262999164,0.92627704,3339.6,3339.2,2.99466]
[1722262999368,0.92627704,3339.6,3339.3,2.99459]
[1722262999567,0.03340569,3339.5,3339.3,3.593529]
[1722262999866,3.63953605,3339.9,3339.3,3.593499]
[1722262999867,0.92627704,3339.8,3339.3,3.593499]
[1722263000177,0.92627704,3339.7,3339.4,2.99452]
[1722263000378,0.95969079,3339.7,3339.2,2.99471]
[1722263000754,0.95969079,3339.7,3339.3,2.99458]
[1722263000955,0.95969079,3339.7,3339.4,0.86891275]
[1722263001592,0.95969079,3339.7,3339.4,3.86345275]
[1722263001755,0.95969079,3339.7,3339.6,2.99437]
[1722263001960,0.03341375,3339.7,3339.5,2.9944]
[1722263002157,0.92627704,3339.8,3339.5,2.9944]
[1722263002389,0.03344047,3339.6,3339.5,6.74050879]
[1722263002695,0.03344047,3339.6,3339.5,3.6861656]
[1722263002696,1.55767543,3339.6,3339.5,3.6861656]
[1722263002895,1.55767543,3339.6,3339.5,6.6806256]
[1722263003195,0.03344047,3339.6,3339.5,6.6806256]
[1722263003558,0.008,3340.0,3339.7,2.99421]
[1722263003757,1.52415469,3339.9,3339.8,2.99417]
[1722263004659,1.52415469,3339.9,3339.8,5.98836]
[1722263004887,0.008,3340.0,3339.9,5.9882]
[1722263005081,1.53196235,3340.0,3339.9,2.9941]
[1722263005293,0.008,3340.0,3339.9,3.62979376]
[1722263005591,0.008,3340.0,3339.9,6.62389376]
[1722263005795,1.53203896,3340.0,3339.9,6.62389376]
[1722263005968,0.008,3340.0,3339.9,6.62389376]
[1722263006167,0.008,3340.0,3339.9,3.62979376]
[1722263006607,0.008,3340.0,3339.9,0.63569376]
[1722263006756,0.008,3340.0,3339.8,3.05405746]
[1722263007173,0.008,3340.0,3339.9,2.9941]
[1722263007563,0.008,3340.0,3339.9,5.9882]
[1722263009520,0.04165434,3340.0,3339.9,5.9882]
[1722263009714,0.008,3340.0,3339.9,5.9882]
[1722263009899,0.008,3340.0,3339.9,7.16400476]
[1722263010090,0.008,3340.0,3339.9,9.80400476]
[1722263010270,0.008,3340.0,3339.9,12.79810476]
[1722263012213,0.008,3340.0,3339.9,9.80400476]
[1722263012588,0.008,3340.0,3339.9,12.79810476]
[1722263012978,2.2982,3341.2,3340.8,2.99324]
[1722263013183,0.92730692,3341.4,3340.9,2.9932]
[1722263013381,1.52367209,3341.3,3340.8,2.99324]
[1722263013623,0.92730692,3341.5,3340.8,2.99322]
[1722263013921,0.92730692,3341.5,3340.3,2.99369]
[1722263013922,2.3386,3341.0,3340.3,2.99369]
[1722263014083,1.52382431,3340.9,3340.0,2.99393]
[1722263014275,2.99353,3340.6,3339.9,2.99409]
[1722263014622,2.99353,3340.6,3339.8,2.99418]
[1722263014623,1.52409799,3340.5,3339.8,2.99418]
[1722263014793,4.55182326,3340.5,3339.7,2.99422]
[1722263014991,0.03410527,3340.5,3339.8,2.99414]
[1722263015333,2.3543,3340.4,3339.7,0.791851]
[1722263015628,5.38205153,3340.4,3339.7,2.99425]
[1722263015925,2.38835153,3340.4,3339.8,2.99418]
[1722263016081,5.38208153,3340.4,3339.7,2.99426]
[1722263016418,5.38208153,3340.4,3339.5,2.99438]
[1722263016615,2.99397,3340.1,3339.4,1.93]
[1722263016822,2.99374,3340.3,3339.5,2.99445]
[1722263017023,0.03383651,3340.0,3339.4,4.92454]
[1722263017222,4.21189577,3340.4,3339.5,2.99444]
[1722263017566,2.99383,3340.2,3339.4,6.579441]
[1722263018125,0.03389027,3340.1,3339.4,6.579441]
[1722263018277,0.03389027,3340.1,3339.5,1.41171336]
[1722263018477,0.03389027,3340.1,3339.4,1.93]
[1722263018678,3.02787027,3340.1,3339.4,1.93]
[1722263019122,2.99402,3340.0,3339.4,1.93]
[1722263019420,3.02660961,3340.0,3339.4,4.92454]
[1722263019621,0.03258961,3340.0,3339.4,4.92454]
[1722263019924,0.03258961,3340.0,3339.7,2.99419]
[1722263020082,0.03238668,3339.9,3339.7,2.99419]
[1722263020284,2.3543,3340.4,3339.7,2.99419]
[1722263020505,2.3543,3340.4,3339.6,0.05988078]
[1722263020506,2.3543,3340.4,3340.0,2.994]
[1722263020781,0.03272485,3340.3,3340.2,5.98766]
[1722263020995,3.24370692,3340.8,3340.3,2.99374]
[1722263020996,5.3164,3340.8,3340.3,2.99374]
[1722263021199,5.3164,3340.8,3340.3,3.856505]
[1722263021200,6.24370692,3340.8,3340.3,3.856505]
[1722263021397,5.3164,3340.8,3340.3,3.856505]
[1722263021597,2.3164,3340.8,3340.5,2.99355]
[1722263021923,3.92037303,3341.1,3340.3,3.856505]
[1722263022123,1.52389107,3341.0,3340.5,2.99354]
[1722263022419,3.24369303,3341.2,3340.5,3.68451159]
[1722263022587,2.3164,3341.2,3340.7,2.99331]
[1722263022784,2.3164,3341.2,3340.6,2.99341]
[1722263023322,2.3164,3341.2,3340.7,2.99338]
[1722263023481,2.3164,3341.2,3340.6,3.45415318]
[1722263024022,2.3164,3341.2,3340.8,2.9932]
[1722263025025,2.3164,3341.2,3340.6,0.46070318]
[1722263025241,2.3164,3341.2,3340.4,2.99356]
[1722263025242,1.52381881,3341.1,3340.4,5.98713]
[1722263025541,2.99331,3340.8,3340.1,2.99391]
[1722263025843,2.99352,3340.6,3340.0,0.008]
[1722263026433,1.52405134,3340.5,3340.0,0.008]
[1722263026742,2.301,3340.7,3340.0,3.00199]
[1722263026915,2.301,3340.7,3340.1,2.9939]
[1722263027118,1.52402708,3340.6,3339.7,2.99423]
[1722263027340,1.52402708,3340.6,3339.9,2.99404]
[1722263027541,4.51750708,3340.6,3339.9,2.99404]
[1722263027742,2.99348,3340.6,3339.9,2.99404]
[1722263027949,2.99359,3340.5,3339.7,2.9942]
[1722263028151,5.98703,3340.6,3339.8,2.99417]
[1722263028351,2.301,3340.7,3339.4,1.93]
[1722263028509,2.56084701,3340.6,3339.5,2.99441]
[1722263028714,2.56084701,3340.5,3339.5,2.99441]
[1722263028912,4.51777739,3340.4,3339.7,2.99427]
[1722263029110,3.48743365,3340.3,3339.3,2.99]
[1722263029414,2.9946,3339.4,3338.6,2.99524]
[1722263029609,2.9949,3339.1,3338.2,2.99555]
[1722263029809,2.301,3339.0,3337.7,5.63]
[1722263030058,2.301,3339.0,3338.5,2.99527]
[1722263030059,2.33155078,3339.0,3338.5,2.99527]
[1722263030263,0.03055078,3339.0,3338.6,3.05516237]
[1722263030415,0.03055078,3339.0,3338.9,2.99499]
[1722263030614,2.301,3339.3,3338.1,2.64]
[1722263030811,0.03073486,3339.0,3338.8,2.99502]
[1722263031144,2.301,3339.3,3338.2,2.99558]
[1722263031145,5.29571,3339.3,3338.2,2.99558]
[1722263031344,0.030619,3338.9,3338.0,2.64]
[1722263031551,5.29571,3339.3,3338.4,2.99536]
[1722263031730,0.0307054,3338.8,3338.5,0.599089]
[1722263031929,5.29571,3339.3,3338.5,2.99528]
[1722263032175,0.03016552,3338.7,3338.5,2.99528]
[1722263032333,5.29571,3339.3,3338.5,2.99528]
[1722263032668,0.03036303,3338.6,3338.0,2.9958]
[1722263032872,2.99537,3338.5,3337.7,2.99604]
[1722263033196,2.99537,3338.5,3337.5,13.27624]
[1722263033197,2.99546,3338.4,3337.8,1.627228]
[1722263033500,2.99546,3338.4,3337.4,1.94]
[1722263033501,5.51322438,3338.4,3337.4,1.94]
[1722263033674,2.51777438,3338.4,3337.4,2.45792058]
[1722263033828,2.51777438,3338.4,3337.6,2.99616]
[1722263034032,2.51777438,3338.4,3337.7,2.99607]
[1722263034233,2.51777438,3338.4,3337.8,0.0599186]
[1722263034592,5.51326438,3338.4,3337.4,5.39432]
[1722263034885,2.99563,3338.2,3337.4,2.99631]
[1722263035188,2.99563,3338.2,3337.1,2.99658]
[1722263035189,3.0254086,3338.1,3337.2,2.99646]
[1722263035746,3.0254086,3338.1,3337.2,2.99652]
[1722263035747,0.0296686,3338.1,3337.2,2.99652]
[1722263035930,0.0296686,3338.1,3336.7,2.99695]
[1722263036135,2.99608,3337.7,3336.9,2.99677]
[1722263036375,2.3784,3337.6,3336.7,2.99695]
[1722263036581,2.40784863,3337.6,3336.7,2.99696]
[1722263036784,2.40784863,3337.6,3337.0,3.00869]
[1722263036980,2.40784863,3337.6,3337.0,0.012]
[1722263037162,2.40784863,3337.6,3337.0,3.00863]
[1722263037338,2.40784863,3337.6,3337.1,0.600551]
[1722263037771,2.40784863,3337.6,3337.0,3.00863]
[1722263037772,2.40784863,3337.6,3337.0,0.012]
[1722263037977,2.99625,3337.5,3337.0,0.012]
[1722263038179,3.02519227,3337.5,3337.0,0.012]
[1722263038406,0.02894227,3337.5,3337.0,0.012]
[1722263039297,2.99636,3337.4,3337.0,0.012]
[1722263039477,2.99653,3337.2,3337.0,0.012]
[1722263039673,2.99674,3337.0,3336.0,2.99759]
[1722263039873,2.99679,3336.9,3336.0,2.99759]
[1722263040232,3.02552973,3336.9,3336.0,2.99759]
[1722263040413,0.02873973,3336.9,3336.1,2.99749]
[1722263040588,0.02873973,3336.9,3336.1,3.597007]
[1722263040788,3.02553973,3336.9,3336.1,3.597007]
[1722263041288,2.99698,3336.7,3335.9,2.99768]
[1722263041719,0.02835845,3336.6,3335.9,2.99768]
[1722263042345,0.02835845,3336.6,3336.1,2.9975]
[1722263042502,2.334,3337.0,3336.1,2.9975]
[1722263042683,2.99679,3336.9,3335.9,2.99768]
[1722263042883,2.99679,3336.9,3335.5,3.523]
[1722263042884,2.99689,3336.8,3336.0,3.597142]
[1722263043239,2.99715,3336.5,3335.7,2.99785]
[1722263043533,0.02731208,3336.7,3335.2,2.99828]
[1722263043534,2.99761,3336.0,3335.2,2.99828]
[1722263043702,2.99752,3336.1,3335.3,2.99822]
[1722263043883,3.02835606,3336.0,3335.3,0.599671]
[1722263044227,5.33363,3335.7,3334.6,2.99884]
[1722263044397,5.33363,3335.7,3334.9,2.99858]